fUST/lending_fUST_20250520
["ID","MTS","AMOUNT","RATE_DAILY","PERIOD"]
[361701601,1747702246839,-430.0,0.0001726,2]
[361701602,1747702246849,-727.54,0.0001726,2]
[361701603,1747702246858,-538.11,0.0001726,2]
[361701604,1747702246868,-520.08,0.0001726,2]
[361701605,1747702246878,-1111.68,0.0001726,2]
[361701606,1747702246888,-430.0,0.0001726,2]
[361701607,1747702246899,-531.73916663,0.0001726,2]
[361701608,1747702246910,-430.0,0.0001726,2]
[361701609,1747702246920,-430.0,0.0001726,2]
[361701611,1747702246931,-430.0,0.0001726,2]
[361701613,1747702246942,-430.0,0.0001726,2]
[361701614,1747702246952,-1092.23,0.0001726,2]
[361701615,1747702246963,-430.0,0.0001726,2]
[361701616,1747702246973,-430.0,0.0001726,2]
[361701617,1747702246984,-430.0,0.0001726,2]
[361701618,1747702246995,-483.6,0.0001726,2]
[361701619,1747702247006,-430.0,0.0001726,2]
[361701620,1747702247016,-272.07733496,0.0001726,2]
[361701621,1747702247507,-1097.78908726,0.00016274,2]
[361701622,1747702247518,-668.82,0.00016438,2]
[361701623,1747702247528,-538.84334572,0.00016438,2]
[361701624,1747702247540,-668.82,0.00016712,2]
[361701625,1747702247552,-437.95,0.00016986,2]
[361701626,1747702247562,-668.82,0.00016986,2]
[361701627,1747702247572,-157.92266504,0.0001726,2]
[361701628,1747702247582,-931.91,0.0001726,2]
[361701629,1747702247592,-430.0,0.0001726,2]
[361701630,1747702247602,-430.0,0.0001726,2]
[361701631,1747702247611,-430.0,0.0001726,2]
[361701632,1747702247621,-430.0,0.0001726,2]
[361701633,1747702247631,-430.0,0.0001726,2]
[361701634,1747702247640,-437.61,0.0001726,2]
[361701635,1747702247651,-430.0,0.0001726,2]
[361701636,1747702247661,-853.06,0.0001726,2]
[361701637,1747702247671,-1460.69,0.0001726,2]
[361701638,1747702247681,-778.2,0.0001726,2]
[361701639,1747702247690,-430.0,0.0001726,2]
[361701640,1747702247700,-1108.12,0.0001726,2]
[361701641,1747702247710,-937.41280696,0.0001726,2]
[361701642,1747702247932,-80.55719304,0.0001726,2]
[361701643,1747702247942,-1716.96,0.0001726,2]
[361701644,1747702247952,-430.0,0.0001726,2]
[361701645,1747702247961,-730.01,0.0001726,2]
[361701646,1747702247971,-474.18,0.0001726,2]
[361701647,1747702247980,-1588.62,0.0001726,2]
[361701648,1747702247990,-1041.6,0.0001726,2]
[361701649,1747702248000,-458.73,0.0001726,2]
[361701650,1747702248009,-802.16,0.0001726,2]
[361701651,1747702248019,-175.97,0.0001726,2]
[361701652,1747702248029,-530.0,0.0001726,2]
[361701653,1747702248042,-151.0,0.0001726,2]
[361701654,1747702248052,-1166.31,0.0001726,2]
[361701655,1747702248061,-548.98431161,0.0001726,2]
[361701716,1747703431957,-217.30747,0.00013699,2]
[361701718,1747703431967,-444.76270921,0.00015495,2]
[361701720,1747703431978,-300.0,0.00015495,2]
[361701722,1747703431987,-107.66386692,0.00015495,2]
[361701746,1747703437775,-300.0,0.00015494,2]
[361701747,1747703437785,-192.33613308,0.00015495,2]
[361701748,1747703437794,-300.0,0.00015495,2]
[361701749,1747703437804,-1200.0,0.00015495,2]
[361701750,1747703437813,-3235.38924248,0.00015497,2]
[361701751,1747703437828,-1012.19799982,0.00015497,2]
[361701752,1747703437839,-1022.70053317,0.00015497,2]
[361701753,1747703437851,-907.71044757,0.00015497,2]
[361701754,1747703437867,-10458.99882407,0.00015497,2]
[361701755,1747703437878,-1737.57848563,0.00015497,2]
[361701796,1747703440125,-290.52116,0.00015497,2]
[361701798,1747703440136,-847.50656881,0.00015497,2]
[361701799,1747703440148,-5387.39673845,0.00015497,2]
[361701800,1747703440157,-683.74596526,0.00015945,2]
[361701802,1747703440167,-10698.28582053,0.00016091,2]
[361701849,1747703443101,-1938.39232892,0.00016338,2]
[361701853,1747703445936,-930.91769675,0.00015463,2]
[361701854,1747703445992,-112.56412285,0.00015463,2]
[361701855,1747703446001,-1734.166699,0.0001593,2]
[361701856,1747703446017,-709.16309492,0.0001593,2]
[361701860,1747703696938,-299.0,0.00014972,2]
[361701879,1747703828146,-1697.95574676,0.00014822,2]
[361701880,1747703828172,-42.04425324,0.00014972,2]
[361701891,1747704222090,-570.0,0.00013562,2]
[361701893,1747704337760,2232.87608066,0.00025,120]
[361701902,1747704424226,120357.40075589,0.00025332,30]
[361701907,1747704499151,-214.23070218,0.000125,2]
[361701960,1747704632167,-4644.20828199,0.00012375,2]
[361701962,1747704632177,-185.0,0.00012499,2]
[361701964,1747704632187,-300.0,0.00012499,2]
[361701966,1747704632197,-1200.0,0.00012499,2]
[361701968,1747704632207,-11059.22624184,0.000125,2]
[361701970,1747704632216,-206.442096,0.00013699,2]
[361701972,1747704632226,-1680.0,0.00013749,2]
[361701974,1747704632236,-69.20332591,0.00014972,2]
[361701976,1747704632246,-2351.0,0.00015124,2]
[361701978,1747704632255,-152.0,0.00015314,2]
[361701980,1747704632265,-300.0,0.00015407,2]
[361701982,1747704632275,-6047.8633188,0.00015409,2]
[361701984,1747704632284,-500.0,0.00015434,2]
[361701986,1747704632294,-8733.68522527,0.00015435,2]
[361701990,1747704632323,-15522.16286173,0.00015435,2]
[361701992,1747704632333,-2411.11414832,0.000156,2]
[361701994,1747704632343,-2411.11414807,0.000156,2]
[361701996,1747704632353,-2411.11414807,0.000156,2]
[361701998,1747704632363,-2411.11414807,0.000156,2]
[361702000,1747704632375,-2411.11414807,0.000156,2]
[361702002,1747704632385,-500.0,0.00015708,2]
[361702023,1747704632641,-2411.11414807,0.00015969,2]
[361702024,1747704632652,-500.0,0.00015982,2]
[361702025,1747704632663,-629.1164058,0.0001603,2]
[361702026,1747704632674,-500.0,0.00016256,2]
[361702027,1747704632685,-2131.63653287,0.00016329,2]
[361702028,1747704632695,-2131.63653287,0.00016331,2]
[361702029,1747704632705,-2131.63653287,0.00016334,2]
[361702030,1747704632715,-2131.63653287,0.00016336,2]
[361702031,1747704632725,-2131.63653287,0.00016338,2]
[361702032,1747704632736,-2411.11414807,0.00016383,2]
[361702033,1747704632746,-151.0,0.00016419,2]
[361702034,1747704632756,-151.0,0.00016419,2]
[361702035,1747704632766,-2222.34,0.0001642,3]
[361702036,1747704632777,-1111.17,0.0001642,3]
[361702037,1747704632787,-555.59,0.0001642,3]
[361702038,1747704632796,-185.2,0.0001642,3]
[361702039,1747704632806,-555.6,0.0001642,3]
[361702040,1747704632816,-152.70466546,0.00016428,2]
[361702041,1747704632825,-500.0,0.00016429,2]
[361702042,1747704632835,-500.0,0.00016429,2]
[361702043,1747704632846,-500.0,0.00016429,2]
[361702044,1747704632856,-500.0,0.00016429,2]
[361702045,1747704632866,-208.93278252,0.00016429,2]
[361702046,1747704632876,-500.0,0.00016429,2]
[361702047,1747704632886,-500.0,0.00016429,2]
[361702048,1747704632895,-500.0,0.00016429,2]
[361702049,1747704632906,-538.94331662,0.00016429,2]
[361702050,1747704632916,-277.82020324,0.00016429,2]
[361702051,1747704632926,-617.56597439,0.00016429,2]
[361702052,1747704632936,-3558.18669346,0.0001643,3]
[361702053,1747704632946,-4571.37045303,0.0001643,2]
[361702054,1747704632957,-236253.918971,0.0001643,2]
[361702055,1747704632966,-151.0,0.0001643,2]
[361702056,1747704632976,-160.0,0.00016437,2]
[361702057,1747704632986,-151.0,0.00016438,2]
[361702058,1747704633002,-151.0,0.00016438,2]
[361702059,1747704633012,-345.23378514,0.00016438,2]
[361702060,1747704633022,-207.72734375,0.00016438,2]
[361702061,1747704633033,-430.0,0.00016438,2]
[361702062,1747704633043,-281.19706727,0.00016438,2]
[361702063,1747704633057,-148.80293273,0.00016438,2]
[361702064,1747704633068,-151.0,0.00016438,2]
[361702065,1747704633078,-151.0,0.00016438,2]
[361702066,1747704633087,-207.692256,0.00016438,2]
[361702067,1747704633099,-430.0,0.00016438,2]
[361702068,1747704633110,-500.0,0.00016438,2]
[361702069,1747704633122,-500.0,0.00016438,2]
[361702070,1747704633132,-618.63158825,0.00016438,2]
[361702071,1747704633142,-500.0,0.00016438,2]
[361702072,1747704633152,-500.0,0.00016438,2]
[361702073,1747704633162,-500.0,0.00016438,2]
[361702074,1747704633173,-500.0,0.00016438,2]
[361702075,1747704633183,-500.0,0.00016438,2]
[361702076,1747704633193,-500.0,0.00016438,2]
[361702077,1747704633203,-500.0,0.00016438,2]
[361702078,1747704633213,-400.0,0.00016438,2]
[361702079,1747704633223,-485.23,0.00016438,2]
[361702080,1747704633233,-430.0,0.00016438,2]
[361702081,1747704633243,-347.28,0.00016438,2]
[361702082,1747704633254,-430.0,0.00016438,2]
[361702083,1747704633264,-430.0,0.00016438,2]
[361702084,1747704633274,-450.0,0.00016438,2]
[361702085,1747704633284,-430.0,0.00016438,2]
[361702086,1747704633294,-430.0,0.00016438,2]
[361702087,1747704633304,-430.0,0.00016438,2]
[361702088,1747704633315,-151.0,0.00016438,2]
[361702089,1747704633324,-151.0,0.00016438,2]
[361702090,1747704633334,-151.0,0.00016438,2]
[361702091,1747704633345,-151.0,0.00016438,2]
[361702092,1747704633356,-430.0,0.00016438,2]
[361702093,1747704633366,-151.0,0.00016438,2]
[361702094,1747704633376,-450.0,0.00016438,2]
[361702095,1747704633388,-430.0,0.00016438,2]
[361702096,1747704633400,-430.0,0.00016438,2]
[361702097,1747704633410,-1120.8,0.00016438,2]
[361702098,1747704633420,-430.0,0.00016438,2]
[361702099,1747704633431,-430.0,0.00016438,2]
[361702100,1747704633440,-430.0,0.00016438,2]
[361702101,1747704633451,-530.25159678,0.00016438,2]
[361702102,1747704633461,-430.0,0.00016438,2]
[361702103,1747704633471,-206.74999979,0.00016438,2]
[361702104,1747704633482,-430.0,0.00016438,2]
[361702105,1747704633492,-501.54518286,0.00016438,2]
[361702106,1747704633502,-151.0,0.00016438,2]
[361702107,1747704633513,-506.10991377,0.00016438,2]
[361702108,1747704633522,-151.0,0.00016438,2]
[361702109,1747704633532,-151.0,0.00016438,2]
[361702110,1747704633542,-151.0,0.00016438,2]
[361702111,1747704633552,-151.0,0.00016438,2]
[361702112,1747704633562,-302.70407163,0.00016438,2]
[361702113,1747704633572,-151.0,0.00016438,2]
[361702114,1747704633581,-167.62209,0.00016438,2]
[361702115,1747704633591,-430.0,0.00016438,2]
[361702116,1747704633602,-430.0,0.00016438,2]
[361702117,1747704633612,-683.29,0.00016438,2]
[361702118,1747704633622,-430.0,0.00016438,2]
[361702119,1747704633632,-514.77,0.00016438,2]
[361702120,1747704633642,-151.0,0.00016438,2]
[361702121,1747704633651,-413.60286852,0.00016438,2]
[361702122,1747704633661,-430.0,0.00016438,2]
[361702123,1747704633671,-430.0,0.00016438,2]
[361702124,1747704633682,-406.21929957,0.00016438,2]
[361702125,1747704633691,-450.0,0.00016438,2]
[361702126,1747704633702,-765.36,0.00016438,2]
[361702127,1747704633712,-430.0,0.00016438,2]
[361702128,1747704633722,-470.0,0.00016438,2]
[361702129,1747704633731,-430.0,0.00016438,2]
[361702130,1747704633742,-430.0,0.00016438,2]
[361702131,1747704633752,-430.0,0.00016438,2]
[361702132,1747704633763,-430.0,0.00016438,2]
[361702133,1747704633772,-452.74,0.00016438,2]
[361702134,1747704633782,-400.0,0.00016438,2]
[361702135,1747704633793,-430.0,0.00016438,2]
[361702136,1747704633804,-430.0,0.00016438,2]
[361702137,1747704633814,-450.0,0.00016438,2]
[361702138,1747704633824,-430.0,0.00016438,2]
[361702139,1747704633834,-430.0,0.00016438,2]
[361702140,1747704633844,-430.0,0.00016438,2]
[361702141,1747704633854,-964.01,0.00016438,2]
[361702142,1747704633864,-430.0,0.00016438,2]
[361702143,1747704633874,-430.0,0.00016438,2]
[361702144,1747704633884,-430.0,0.00016438,2]
[361702145,1747704633894,-430.0,0.00016438,2]
[361702146,1747704633904,-430.0,0.00016438,2]
[361702147,1747704633915,-963.9,0.00016438,2]
[361702148,1747704633925,-266.43657055,0.00016438,2]
[361702149,1747704633935,-550.07,0.00016438,2]
[361702150,1747704633945,-430.0,0.00016438,2]
[361702151,1747704633954,-430.0,0.00016438,2]
[361702152,1747704633964,-430.0,0.00016438,2]
[361702153,1747704633974,-430.0,0.00016438,2]
[361702154,1747704633983,-190.0,0.00016438,2]
[361702155,1747704633993,-155.06169157,0.00016438,2]
[361702156,1747704634004,-430.0,0.00016438,2]
[361702157,1747704634014,-710.89,0.00016438,2]
[361702158,1747704634024,-430.0,0.00016438,2]
[361702159,1747704634035,-559.900326,0.00016438,2]
[361702160,1747704634047,-559.900326,0.00016438,2]
[361702161,1747704634058,-559.900326,0.00016438,2]
[361702162,1747704634069,-559.900326,0.00016438,2]
[361702163,1747704634079,-559.900326,0.00016438,2]
[361702164,1747704634090,-559.900326,0.00016438,2]
[361702165,1747704634101,-559.900326,0.00016438,2]
[361702166,1747704634111,-559.900326,0.00016438,2]
[361702167,1747704634120,-559.900326,0.00016438,2]
[361702168,1747704634131,-559.900326,0.00016438,2]
[361702169,1747704634141,-559.900326,0.00016438,2]
[361702170,1747704634151,-413.97815311,0.00016438,2]
[361702171,1747704634161,-559.900326,0.00016438,2]
[361702172,1747704634171,-250.09085467,0.00016438,2]
[361702173,1747704634182,-597.86,0.00016438,2]
[361702174,1747704634192,-430.0,0.00016438,2]
[361702175,1747704634201,-457.24227385,0.00016438,2]
[361702176,1747704634211,-337.0602909,0.00016438,2]
[361702177,1747704634222,-430.0,0.00016438,2]
[361702178,1747704634232,-430.0,0.00016438,2]
[361702179,1747704634242,-450.0,0.00016438,2]
[361702180,1747704634253,-430.0,0.00016438,2]
[361702181,1747704634263,-450.0,0.00016438,2]
[361702182,1747704634274,-430.0,0.00016438,2]
[361702183,1747704634284,-402.27004007,0.00016438,2]
[361702184,1747704634294,-430.0,0.00016438,2]
[361702185,1747704634304,-408.67901371,0.00016438,2]
[361702186,1747704634313,-426.08,0.00016438,2]
[361702187,1747704634323,-412.96032534,0.00016438,2]
[361702188,1747704634333,-932.02,0.00016438,2]
[361702189,1747704634344,-430.0,0.00016438,2]
[361702190,1747704634357,-430.0,0.00016438,2]
[361702191,1747704634367,-430.0,0.00016438,2]
[361702192,1747704634377,-430.0,0.00016438,2]
[361702193,1747704634386,-430.0,0.00016438,2]
[361702194,1747704634398,-646.49,0.00016438,2]
[361702195,1747704634407,-430.0,0.00016438,2]
[361702196,1747704634417,-430.0,0.00016438,2]
[361702197,1747704634427,-450.0,0.00016438,2]
[361702198,1747704634437,-430.0,0.00016438,2]
[361702199,1747704634447,-593.89,0.00016438,2]
[361702200,1747704634457,-887.59,0.00016438,2]
[361702201,1747704634466,-430.0,0.00016438,2]
[361702202,1747704634476,-450.0,0.00016438,2]
[361702203,1747704634486,-329.81,0.00016438,2]
[361702204,1747704634496,-430.0,0.00016438,2]
[361702205,1747704634508,-430.0,0.00016438,2]
[361702206,1747704634518,-634.44,0.00016438,2]
[361702207,1747704634529,-458.55,0.00016438,2]
[361702208,1747704634540,-430.0,0.00016438,2]
[361702209,1747704634551,-539.91,0.00016438,2]
[361702210,1747704634561,-151.0,0.00016438,2]
[361702211,1747704634570,-151.0,0.00016438,2]
[361702212,1747704634580,-430.0,0.00016438,2]
[361702213,1747704634590,-151.0,0.00016438,2]
[361702214,1747704634600,-151.0,0.00016438,2]
[361702215,1747704634610,-151.0,0.00016438,2]
[361702216,1747704634620,-151.0,0.00016438,2]
[361702217,1747704634630,-248.002204,0.00016438,2]
[361702218,1747704634640,-872.25,0.00016438,2]
[361702219,1747704634650,-430.0,0.00016438,2]
[361702220,1747704634660,-507.52,0.00016438,2]
[361702221,1747704634670,-430.0,0.00016438,2]
[361702222,1747704634680,-157.88394426,0.00016438,2]
[361702223,1747704634689,-151.0,0.00016438,2]
[361702224,1747704634699,-151.0,0.00016438,2]
[361702225,1747704634709,-151.0,0.00016438,2]
[361702226,1747704634719,-400.0,0.00016438,2]
[361702227,1747704634728,-151.0,0.00016438,2]
[361702228,1747704634739,-151.0,0.00016438,2]
[361702229,1747704634748,-506.06089301,0.00016438,2]
[361702230,1747704634758,-430.0,0.00016438,2]
[361702231,1747704634767,-400.0,0.00016438,2]
[361702232,1747704634777,-350.0,0.00016438,2]
[361702233,1747704634786,-430.0,0.00016438,2]
[361702234,1747704634796,-430.0,0.00016438,2]
[361702235,1747704634806,-575.0,0.00016438,2]
[361702236,1747704634815,-430.0,0.00016438,2]
[361702237,1747704634825,-430.0,0.00016438,2]
[361702238,1747704634835,-290.0,0.00016438,2]
[361702239,1747704634844,-430.0,0.00016438,2]
[361702240,1747704634854,-275.82,0.00016438,2]
[361702241,1747704634863,-430.0,0.00016438,2]
[361702242,1747704634873,-430.0,0.00016438,2]
[361702243,1747704634883,-430.0,0.00016438,2]
[361702244,1747704634893,-430.0,0.00016438,2]
[361702245,1747704634903,-430.0,0.00016438,2]
[361702246,1747704634912,-316.70676,0.00016438,2]
[361702247,1747704634922,-316.70676,0.00016438,2]
[361702248,1747704634931,-316.70676,0.00016438,2]
[361702249,1747704634941,-430.0,0.00016438,2]
[361702250,1747704634951,-316.70676,0.00016438,2]
[361702251,1747704634961,-316.70676,0.00016438,2]
[361702252,1747704634970,-316.70676,0.00016438,2]
[361702253,1747704634980,-316.70676,0.00016438,2]
[361702254,1747704634990,-430.0,0.00016438,2]
[361702255,1747704634999,-316.70676,0.00016438,2]
[361702256,1747704635010,-316.70676,0.00016438,2]
[361702257,1747704635019,-316.70676,0.00016438,2]
[361702258,1747704635030,-316.70676,0.00016438,2]
[361702259,1747704635039,-316.70676,0.00016438,2]
[361702260,1747704635049,-430.0,0.00016438,2]
[361702261,1747704635059,-500.0,0.00016438,2]
[361702262,1747704635069,-316.70676,0.00016438,2]
[361702263,1747704635078,-316.70676,0.00016438,2]
[361702264,1747704635088,-430.0,0.00016438,2]
[361702265,1747704635098,-430.0,0.00016438,2]
[361702266,1747704635108,-430.0,0.00016438,2]
[361702267,1747704635117,-430.0,0.00016438,2]
[361702268,1747704635127,-430.0,0.00016438,2]
[361702269,1747704635137,-477.12,0.00016438,2]
[361702270,1747704635146,-430.0,0.00016438,2]
[361702271,1747704635155,-400.0,0.00016438,2]
[361702272,1747704635165,-430.0,0.00016438,2]
[361702273,1747704635175,-430.0,0.00016438,2]
[361702274,1747704635185,-430.0,0.00016438,2]
[361702275,1747704635195,-501.0068657,0.00016438,2]
[361702276,1747704635205,-430.0,0.00016438,2]
[361702277,1747704635215,-450.0,0.00016438,2]
[361702278,1747704635225,-430.0,0.00016438,2]
[361702279,1747704635235,-430.0,0.00016438,2]
[361702280,1747704635245,-500.0,0.00016438,2]
[361702281,1747704635255,-450.0,0.00016438,2]
[361702282,1747704635266,-430.0,0.00016438,2]
[361702283,1747704635277,-561.89198019,0.00016438,2]
[361702284,1747704635288,-430.0,0.00016438,2]
[361702285,1747704635298,-460.63182507,0.00016438,2]
[361702286,1747704635308,-316.93844004,0.00016438,2]
[361702287,1747704635318,-450.0,0.00016438,2]
[361702288,1747704635328,-400.0,0.00016438,2]
[361702289,1747704635338,-450.0,0.00016438,2]
[361702290,1747704635351,-450.0,0.00016438,2]
[361702291,1747704635361,-430.0,0.00016438,2]
[361702292,1747704635371,-450.0,0.00016438,2]
[361702293,1747704635380,-430.0,0.00016438,2]
[361702294,1747704635390,-430.0,0.00016438,2]
[361702295,1747704635400,-430.0,0.00016438,2]
[361702296,1747704635409,-448.1,0.00016438,2]
[361702297,1747704635419,-507.9590261,0.00016438,2]
[361702298,1747704635429,-430.0,0.00016438,2]
[361702299,1747704635440,-400.0,0.00016438,2]
[361702300,1747704635450,-430.0,0.00016438,2]
[361702301,1747704635460,-430.0,0.00016438,2]
[361702302,1747704635470,-430.0,0.00016438,2]
[361702303,1747704635480,-430.0,0.00016438,2]
[361702304,1747704635492,-1127.98,0.00016438,2]
[361702305,1747704635503,-400.0,0.00016438,2]
[361702306,1747704635514,-400.0,0.00016438,2]
[361702307,1747704635524,-151.0,0.00016438,2]
[361702308,1747704635535,-430.0,0.00016438,2]
[361702309,1747704635545,-430.0,0.00016438,2]
[361702310,1747704635555,-573.23,0.00016438,2]
[361702311,1747704635564,-403.60232207,0.00016438,2]
[361702312,1747704635574,-400.0,0.00016438,2]
[361702313,1747704635584,-430.0,0.00016438,2]
[361702314,1747704635593,-151.0,0.00016438,2]
[361702315,1747704635603,-430.0,0.00016438,2]
[361702316,1747704635612,-430.0,0.00016438,2]
[361702317,1747704635622,-430.0,0.00016438,2]
[361702318,1747704635631,-430.0,0.00016438,2]
[361702319,1747704635641,-489.65,0.00016438,2]
[361702320,1747704635651,-404.10905592,0.00016438,2]
[361702321,1747704635661,-430.0,0.00016438,2]
[361702322,1747704635671,-151.0,0.00016438,2]
[361702323,1747704635681,-430.0,0.00016438,2]
[361702324,1747704635690,-516.11393617,0.00016438,2]
[361702325,1747704635700,-430.0,0.00016438,2]
[361702326,1747704635711,-430.0,0.00016438,2]
[361702327,1747704635720,-346.20161224,0.00016438,2]
[361702328,1747704635730,-400.0,0.00016438,2]
[361702329,1747704635739,-430.0,0.00016438,2]
[361702330,1747704635750,-430.0,0.00016438,2]
[361702331,1747704635760,-3233.47,0.00016438,2]
[361702332,1747704635771,-430.0,0.00016438,2]
[361702333,1747704635782,-430.0,0.00016438,2]
[361702334,1747704635792,-450.0,0.00016438,2]
[361702335,1747704635801,-430.0,0.00016438,2]
[361702336,1747704635811,-430.0,0.00016438,2]
[361702337,1747704635821,-450.0,0.00016438,2]
[361702338,1747704635831,-2543.28,0.00016438,2]
[361702339,1747704635840,-1444.41,0.00016438,2]
[361702340,1747704635851,-430.0,0.00016438,2]
[361702341,1747704635861,-410.40353036,0.00016438,2]
[361702342,1747704635870,-762.66,0.00016438,2]
[361702343,1747704635880,-664.59,0.00016438,2]
[361702344,1747704635889,-430.0,0.00016438,2]
[361702345,1747704635899,-430.0,0.00016438,2]
[361702346,1747704635909,-430.0,0.00016438,2]
[361702347,1747704635918,-430.0,0.00016438,2]
[361702348,1747704635928,-430.0,0.00016438,2]
[361702349,1747704635938,-749.61,0.00016438,2]
[361702350,1747704635948,-430.0,0.00016438,2]
[361702351,1747704635958,-151.0,0.00016438,2]
[361702352,1747704635968,-151.0,0.00016438,2]
[361702353,1747704635977,-151.0,0.00016438,2]
[361702354,1747704635987,-430.0,0.00016438,2]
[361702355,1747704635997,-430.0,0.00016438,2]
[361702356,1747704636007,-151.0,0.00016438,2]
[361702357,1747704636018,-1135.46,0.00016438,2]
[361702358,1747704636028,-2944.45,0.00016438,2]
[361702359,1747704636037,-430.0,0.00016438,2]
[361702360,1747704636047,-430.0,0.00016438,2]
[361702361,1747704636219,-430.0,0.00016438,2]
[361702362,1747704636229,-430.0,0.00016438,2]
[361702363,1747704636241,-430.0,0.00016438,2]
[361702364,1747704636252,-430.0,0.00016438,2]
[361702365,1747704636262,-430.0,0.00016438,2]
[361702366,1747704636272,-430.0,0.00016438,2]
[361702367,1747704636282,-430.0,0.00016438,2]
[361702368,1747704636293,-976.08,0.00016438,2]
[361702369,1747704636303,-430.0,0.00016438,2]
[361702370,1747704636314,-151.0,0.00016438,2]
[361702371,1747704636324,-430.0,0.00016438,2]
[361702372,1747704636334,-430.0,0.00016438,2]
[361702373,1747704636346,-151.0,0.00016438,2]
[361702374,1747704636360,-450.0,0.00016438,2]
[361702375,1747704636370,-151.0,0.00016438,2]
[361702376,1747704636380,-430.0,0.00016438,2]
[361702377,1747704636390,-151.0,0.00016438,2]
[361702378,1747704636400,-1097.4,0.00016438,2]
[361702379,1747704636410,-430.0,0.00016438,2]
[361702380,1747704636420,-452.64,0.00016438,2]
[361702381,1747704636431,-430.0,0.00016438,2]
[361702382,1747704636441,-430.0,0.00016438,2]
[361702383,1747704636451,-4372.86,0.00016438,2]
[361702384,1747704636461,-430.0,0.00016438,2]
[361702385,1747704636471,-626.68,0.00016438,2]
[361702386,1747704636481,-400.0,0.00016438,2]
[361702387,1747704636490,-400.0,0.00016438,2]
[361702388,1747704636499,-430.0,0.00016438,2]
[361702389,1747704636509,-729.28,0.00016438,2]
[361702390,1747704636519,-416.74237117,0.00016438,2]
[361702391,1747704636529,-430.0,0.00016438,2]
[361702392,1747704636538,-554.95,0.00016438,2]
[361702393,1747704636548,-430.0,0.00016438,2]
[361702394,1747704636558,-186.674992,0.00016438,2]
[361702395,1747704636568,-1728.53,0.00016438,2]
[361702396,1747704636577,-430.0,0.00016438,2]
[361702397,1747704636587,-430.0,0.00016438,2]
[361702398,1747704636597,-432.45,0.00016438,2]
[361702399,1747704636609,-400.0,0.00016438,2]
[361702400,1747704636619,-430.0,0.00016438,2]
[361702401,1747704636629,-430.0,0.00016438,2]
[361702402,1747704636639,-406.24137316,0.00016438,2]
[361702403,1747704636648,-439.46,0.00016438,2]
[361702404,1747704636658,-1053.47,0.00016438,2]
[361702405,1747704636668,-430.0,0.00016438,2]
[361702406,1747704636678,-430.0,0.00016438,2]
[361702407,1747704636687,-430.0,0.00016438,2]
[361702408,1747704636696,-400.0,0.00016438,2]
[361702409,1747704636706,-400.0,0.00016438,2]
[361702410,1747704636718,-450.0,0.00016438,2]
[361702411,1747704636727,-1531.06,0.00016438,2]
[361702412,1747704636737,-556.92,0.00016438,2]
[361702413,1747704636747,-430.0,0.00016438,2]
[361702414,1747704636757,-430.0,0.00016438,2]
[361702415,1747704636767,-1902.03,0.00016438,2]
[361702416,1747704636776,-450.0,0.00016438,2]
[361702417,1747704636786,-10021.24,0.00016438,2]